[Event "*** SCC Grand Prix: Titled Tuesday Blitz"]
[Site "Chess.com"]
[Date "2020.08.11"]
[Round "8"]
[White "alfiefischer77"]
[Black "Karina_Ivanova"]
[Result "1/2-1/2"]
[WhiteElo "2270"]
[BlackElo "2214"]
[TimeControl "180+1"]
[EndTime "11:35:37 PDT"]
[Termination "Game drawn - insufficient material"]

1. e4 {[%clk 0:03:00.9]} 1... c6 {[%clk 0:02:58.8]} 2. d4 {[%clk 0:03:00.6]}
2... d5 {[%clk 0:02:58.4]} 3. exd5 {[%clk 0:03:01.5]} 3... cxd5 {[%clk
0:02:58.3]} 4. c4 {[%clk 0:03:02.4]} 4... Nf6 {[%clk 0:02:58]} 5. Nc3 {[%clk
0:03:02.7]} 5... e6 {[%clk 0:02:58.1]} 6. Nf3 {[%clk 0:03:02.2]} 6... Bb4 {[%clk
0:02:57.8]} 7. cxd5 {[%clk 0:03:00.4]} 7... Nxd5 {[%clk 0:02:57.7]} 8. Bd2
{[%clk 0:03:00.8]} 8... Nc6 {[%clk 0:02:57.5]} 9. Bd3 {[%clk 0:03:01]} 9... O-O
{[%clk 0:02:57.1]} 10. O-O {[%clk 0:03:01.1]} 10... Be7 {[%clk 0:02:57.2]} 11.
a3 {[%clk 0:02:37.9]} 11... Bf6 {[%clk 0:02:55.1]} 12. Qc2 {[%clk 0:02:35.6]}
12... g6 {[%clk 0:02:53.7]} 13. Bh6 {[%clk 0:02:28.8]} 13... Re8 {[%clk
0:02:52.3]} 14. Rad1 {[%clk 0:02:10.4]} 14... Bd7 {[%clk 0:02:43.9]} 15. Be4
{[%clk 0:02:02.4]} 15... Nce7 {[%clk 0:02:40]} 16. Rfe1 {[%clk 0:01:55]} 16...
Rc8 {[%clk 0:02:37.6]} 17. Qb3 {[%clk 0:01:52]} 17... Bc6 {[%clk 0:02:32.9]} 18.
Ne5 {[%clk 0:01:39.7]} 18... Nxc3 {[%clk 0:02:19.5]} 19. Nxc6 {[%clk 0:01:32]}
19... Nxc6 {[%clk 0:02:18]} 20. bxc3 {[%clk 0:01:23.6]} 20... Qc7 {[%clk
0:02:12.9]} 21. Rc1 {[%clk 0:00:22.2]} 21... Na5 {[%clk 0:02:03.7]} 22. Qb5
{[%clk 0:00:21.9]} 22... a6 {[%clk 0:02:00.7]} 23. Qb4 {[%clk 0:00:21.6]} 23...
b5 {[%clk 0:01:56]} 24. g3 {[%clk 0:00:17.2]} 24... Nc4 {[%clk 0:01:52.4]} 25.
Bf4 {[%clk 0:00:16.6]} 25... Qe7 {[%clk 0:01:49.8]} 26. Qxe7 {[%clk 0:00:15.7]}
26... Bxe7 {[%clk 0:01:49.1]} 27. a4 {[%clk 0:00:16]} 27... bxa4 {[%clk
0:01:47.6]} 28. Bb7 {[%clk 0:00:15.7]} 28... Rcd8 {[%clk 0:01:41.5]} 29. Bxa6
{[%clk 0:00:15.8]} 29... Nb2 {[%clk 0:01:32.4]} 30. Rc2 {[%clk 0:00:15.4]} 30...
a3 {[%clk 0:01:32.3]} 31. Bc1 {[%clk 0:00:14.5]} 31... Ra8 {[%clk 0:01:29.7]}
32. Bb5 {[%clk 0:00:13.6]} 32... Reb8 {[%clk 0:01:29.5]} 33. c4 {[%clk
0:00:13.5]} 33... Nd3 {[%clk 0:01:26.7]} 34. Rd1 {[%clk 0:00:13.4]} 34... Nxc1
{[%clk 0:01:25.9]} 35. Rdxc1 {[%clk 0:00:13.9]} 35... Bf6 {[%clk 0:01:17.1]} 36.
Rd1 {[%clk 0:00:11.8]} 36... a2 {[%clk 0:01:14.5]} 37. Ra1 {[%clk 0:00:11.9]}
37... Bxd4 {[%clk 0:01:12.5]} 38. Raxa2 {[%clk 0:00:12.2]} 38... Rxa2 {[%clk
0:01:06.2]} 39. Rxa2 {[%clk 0:00:13.1]} 39... Rd8 {[%clk 0:01:01]} 40. Rd2
{[%clk 0:00:13.1]} 40... e5 {[%clk 0:00:58.4]} 41. Kg2 {[%clk 0:00:13.3]} 41...
Bb6 {[%clk 0:00:57.8]} 42. Rxd8+ {[%clk 0:00:12.6]} 42... Bxd8 {[%clk 0:00:58]}
43. Kf3 {[%clk 0:00:13.5]} 43... f5 {[%clk 0:00:58.1]} 44. Ke3 {[%clk
0:00:13.5]} 44... Bb6+ {[%clk 0:00:57.8]} 45. Ke2 {[%clk 0:00:13.9]} 45... Kf7
{[%clk 0:00:57.9]} 46. Kf3 {[%clk 0:00:14.1]} 46... e4+ {[%clk 0:00:57.1]} 47.
Ke2 {[%clk 0:00:14.8]} 47... Ke6 {[%clk 0:00:57.1]} 48. f3 {[%clk 0:00:14.9]}
48... Ke5 {[%clk 0:00:55.1]} 49. Bc6 {[%clk 0:00:13.7]} 49... Kd4 {[%clk
0:00:53.8]} 50. fxe4 {[%clk 0:00:13.1]} 50... fxe4 {[%clk 0:00:53.9]} 51. Bd5
{[%clk 0:00:13.4]} 51... g5 {[%clk 0:00:50.7]} 52. Bg8 {[%clk 0:00:13]} 52... h5
{[%clk 0:00:49]} 53. Bf7 {[%clk 0:00:12.7]} 53... h4 {[%clk 0:00:48.9]} 54. gxh4
{[%clk 0:00:13.1]} 54... gxh4 {[%clk 0:00:49.8]} 55. h3 {[%clk 0:00:12.3]} 55...
Bc7 {[%clk 0:00:48.9]} 56. Be6 {[%clk 0:00:12]} 56... Bf4 {[%clk 0:00:47.1]} 57.
Bf7 {[%clk 0:00:11.8]} 57... Ke5 {[%clk 0:00:45.7]} 58. Bg8 {[%clk 0:00:11.8]}
58... Bc1 {[%clk 0:00:44.1]} 59. Bd5 {[%clk 0:00:11.5]} 59... Ba3 {[%clk
0:00:41.9]} 60. Bg8 {[%clk 0:00:11.5]} 60... Bc5 {[%clk 0:00:41.5]} 61. Bd5
{[%clk 0:00:11.7]} 61... Kf4 {[%clk 0:00:41.6]} 62. Be6 {[%clk 0:00:11.3]} 62...
Bd4 {[%clk 0:00:40.7]} 63. Bd7 {[%clk 0:00:11.1]} 63... Kg3 {[%clk 0:00:38.7]}
64. Be6 {[%clk 0:00:11.2]} 64... Kg2 {[%clk 0:00:37.8]} 65. Bf5 {[%clk
0:00:11.4]} 65... Kg3 {[%clk 0:00:37.8]} 66. Bxe4 {[%clk 0:00:11.4]} 66... Kxh3
{[%clk 0:00:38]} 67. Bd5 {[%clk 0:00:11.3]} 67... Kg4 {[%clk 0:00:37.7]} 68. Kd3
{[%clk 0:00:11.8]} 68... Bc5 {[%clk 0:00:37.5]} 69. Kc3 {[%clk 0:00:12.2]} 69...
h3 {[%clk 0:00:36.1]} 70. Be6+ {[%clk 0:00:11.1]} 70... Kg3 {[%clk 0:00:35.8]}
71. Bxh3 {[%clk 0:00:12]} 71... Kxh3 {[%clk 0:00:36.7]} 72. Kd3 {[%clk
0:00:12.8]} 72... Kg4 {[%clk 0:00:36.6]} 73. Ke4 {[%clk 0:00:13.7]} 73... Kg5
{[%clk 0:00:34.9]} 74. Kd5 {[%clk 0:00:14.6]} 74... Be3 {[%clk 0:00:34.4]} 75.
Ke4 {[%clk 0:00:14.3]} 75... Bg1 {[%clk 0:00:34]} 76. Kd5 {[%clk 0:00:15.2]}
76... Kf6 {[%clk 0:00:34]} 77. c5 {[%clk 0:00:15.6]} 77... Ke7 {[%clk
0:00:34.2]} 78. c6 {[%clk 0:00:15.5]} 78... Kd8 {[%clk 0:00:34.3]} 79. c7+
{[%clk 0:00:15.9]} 79... Kc8 {[%clk 0:00:34.1]} 80. Ke4 {[%clk 0:00:15.3]} 80...
Kd7 {[%clk 0:00:33.2]} 81. Kf3 {[%clk 0:00:16.2]} 81... Bb6 {[%clk 0:00:30.6]}
82. Ke4 {[%clk 0:00:17.1]} 82... Bxc7 {[%clk 0:00:30.2]} 1/2-1/2

[Event "*** SCC Grand Prix: Titled Tuesday Blitz"]
[Site "Chess.com"]
[Date "2020.08.11"]
[Round "8"]
[White "Sanan_Sjugirov"]
[Black "johnathan113"]
[Result "1-0"]
[WhiteElo "2850"]
[BlackElo "2712"]
[TimeControl "180+1"]
[EndTime "11:35:40 PDT"]
[Termination "Sanan_Sjugirov won on time"]

1. e4 {[%clk 0:03:00.9]} 1... c5 {[%clk 0:02:59.5]} 2. Nf3 {[%clk 0:03:00.9]}
2... g6 {[%clk 0:02:59.4]} 3. d4 {[%clk 0:02:59.6]} 3... cxd4 {[%clk 0:03:00.3]}
4. Nxd4 {[%clk 0:03:00.5]} 4... Nc6 {[%clk 0:02:59.8]} 5. c4 {[%clk 0:03:00.4]}
5... Bg7 {[%clk 0:03:00]} 6. Be3 {[%clk 0:03:00.4]} 6... Qb6 {[%clk 0:02:59.4]}
7. Nb3 {[%clk 0:02:59]} 7... Qd8 {[%clk 0:02:58.5]} 8. Nc3 {[%clk 0:02:49.7]}
8... d6 {[%clk 0:02:58.4]} 9. Nd4 {[%clk 0:02:41.7]} 9... Nf6 {[%clk 0:02:54.8]}
10. Be2 {[%clk 0:02:41.4]} 10... O-O {[%clk 0:02:55.1]} 11. O-O {[%clk
0:02:40.1]} 11... Bd7 {[%clk 0:02:55.6]} 12. Nc2 {[%clk 0:02:22.9]} 12... Rc8
{[%clk 0:02:54.8]} 13. f3 {[%clk 0:02:16.8]} 13... a6 {[%clk 0:02:53]} 14. Qd2
{[%clk 0:02:08.9]} 14... Be6 {[%clk 0:02:45]} 15. b3 {[%clk 0:02:01.5]} 15...
Nd7 {[%clk 0:02:44.2]} 16. Rac1 {[%clk 0:01:57.5]} 16... Qa5 {[%clk 0:02:42.9]}
17. Nd4 {[%clk 0:01:48]} 17... Nxd4 {[%clk 0:02:41.5]} 18. Bxd4 {[%clk
0:01:48.9]} 18... Bxd4+ {[%clk 0:02:41.1]} 19. Qxd4 {[%clk 0:01:49.8]} 19... Qc5
{[%clk 0:02:40.3]} 20. Rfd1 {[%clk 0:01:47]} 20... a5 {[%clk 0:02:37.4]} 21.
Qxc5 {[%clk 0:01:43.9]} 21... Nxc5 {[%clk 0:02:36.7]} 22. Kf2 {[%clk 0:01:41.7]}
22... f5 {[%clk 0:02:36.2]} 23. exf5 {[%clk 0:01:37.4]} 23... Rxf5 {[%clk
0:02:33.6]} 24. Nb5 {[%clk 0:01:34.2]} 24... Bd7 {[%clk 0:02:31.4]} 25. Nd4
{[%clk 0:01:31.9]} 25... Rf6 {[%clk 0:02:31.8]} 26. Nc2 {[%clk 0:01:15.4]} 26...
Ne4+ {[%clk 0:02:25.8]} 27. Ke1 {[%clk 0:01:14.3]} 27... Nc3 {[%clk 0:02:26.7]}
28. Rd2 {[%clk 0:01:09.6]} 28... b5 {[%clk 0:01:53.8]} 29. Ne3 {[%clk
0:01:02.4]} 29... Nxe2 {[%clk 0:01:52]} 30. Rxe2 {[%clk 0:00:59.8]} 30... Re6
{[%clk 0:01:43.3]} 31. Nd5 {[%clk 0:00:56.7]} 31... Rxe2+ {[%clk 0:01:35.1]} 32.
Kxe2 {[%clk 0:00:57.6]} 32... Re8 {[%clk 0:01:23]} 33. c5 {[%clk 0:00:44.9]}
33... Bc6 {[%clk 0:01:23.1]} 34. Ne3 {[%clk 0:00:33.5]} 34... d5 {[%clk
0:01:22.6]} 35. Ng4 {[%clk 0:00:30]} 35... Rc8 {[%clk 0:01:13.9]} 36. Ne5 {[%clk
0:00:29]} 36... Be8 {[%clk 0:01:10.3]} 37. Ke3 {[%clk 0:00:27.9]} 37... e6
{[%clk 0:01:06]} 38. Kd4 {[%clk 0:00:28]} 38... Kf8 {[%clk 0:01:06.5]} 39. h4
{[%clk 0:00:23.4]} 39... Ke7 {[%clk 0:01:06.2]} 40. f4 {[%clk 0:00:23.1]} 40...
b4 {[%clk 0:01:03.3]} 41. g4 {[%clk 0:00:14.1]} 41... Ra8 {[%clk 0:01:03]} 42.
Re1 {[%clk 0:00:05.3]} 42... Bb5 {[%clk 0:00:43.7]} 43. Nf3 {[%clk 0:00:05.3]}
43... Rf8 {[%clk 0:00:33.7]} 44. Ke3 {[%clk 0:00:05.7]} 44... Rc8 {[%clk
0:00:28.9]} 45. Rc1 {[%clk 0:00:05.5]} 45... Be8 {[%clk 0:00:23.6]} 46. Ne5
{[%clk 0:00:05.4]} 46... Ra8 {[%clk 0:00:22]} 47. Nd3 {[%clk 0:00:05.6]} 47...
Kd7 {[%clk 0:00:20.8]} 48. Kd4 {[%clk 0:00:04.6]} 48... Ke7 {[%clk 0:00:17.7]}
49. Re1 {[%clk 0:00:04.8]} 49... Kf6 {[%clk 0:00:18.3]} 50. Ne5 {[%clk
0:00:04.6]} 50... a4 {[%clk 0:00:16.6]} 51. Nd3 {[%clk 0:00:05]} 51... axb3
{[%clk 0:00:16.3]} 52. axb3 {[%clk 0:00:05.9]} 52... Ra3 {[%clk 0:00:16.6]} 53.
Rb1 {[%clk 0:00:06]} 53... Ra2 {[%clk 0:00:14.4]} 54. Nxb4 {[%clk 0:00:05.9]}
54... Rg2 {[%clk 0:00:14.7]} 55. c6 {[%clk 0:00:05.6]} 55... Rxg4 {[%clk
0:00:14.4]} 56. c7 {[%clk 0:00:05.5]} 56... Rxf4+ {[%clk 0:00:13.5]} 57. Kc5
{[%clk 0:00:05.3]} 57... Bd7 {[%clk 0:00:14.4]} 58. Nc6 {[%clk 0:00:05.3]} 58...
Rf2 {[%clk 0:00:11.7]} 59. Kd6 {[%clk 0:00:05.6]} 59... Bc8 {[%clk 0:00:08.1]}
60. Ra1 {[%clk 0:00:06.1]} 60... d4 {[%clk 0:00:07.6]} 61. Ra8 {[%clk
0:00:06.1]} 61... Bb7 {[%clk 0:00:06.2]} 62. Rf8+ {[%clk 0:00:06]} 62... Kg7
{[%clk 0:00:05.7]} 63. Rxf2 {[%clk 0:00:06.9]} 1-0

[Event "*** SCC Grand Prix: Titled Tuesday Blitz"]
[Site "Chess.com"]
[Date "2020.08.11"]
[Round "8"]
[White "suyu28"]
[Black "Mikasinski"]
[Result "1-0"]
[WhiteElo "2581"]
[BlackElo "2448"]
[TimeControl "180+1"]
[EndTime "11:35:42 PDT"]
[Termination "suyu28 won by resignation"]

1. d4 {[%clk 0:02:59.7]} 1... Nf6 {[%clk 0:02:59.8]} 2. c4 {[%clk 0:02:59.5]}
2... g6 {[%clk 0:03:00.3]} 3. Nc3 {[%clk 0:02:59.4]} 3... Bg7 {[%clk 0:03:01]}
4. g3 {[%clk 0:02:59.7]} 4... d6 {[%clk 0:03:00.9]} 5. Bg2 {[%clk 0:03:00]} 5...
O-O {[%clk 0:03:01.6]} 6. Nf3 {[%clk 0:03:00.9]} 6... Nc6 {[%clk 0:03:01.1]} 7.
O-O {[%clk 0:03:01.4]} 7... a6 {[%clk 0:03:01.3]} 8. e4 {[%clk 0:03:01.5]} 8...
Bg4 {[%clk 0:02:56.3]} 9. Be3 {[%clk 0:02:59.1]} 9... Nd7 {[%clk 0:02:53.4]} 10.
h3 {[%clk 0:02:44.8]} 10... Bxf3 {[%clk 0:02:51.7]} 11. Bxf3 {[%clk 0:02:45.7]}
11... e5 {[%clk 0:02:51.1]} 12. d5 {[%clk 0:02:45.5]} 12... Nd4 {[%clk 0:02:49]}
13. Bg2 {[%clk 0:02:46.4]} 13... c5 {[%clk 0:02:47.2]} 14. f4 {[%clk 0:02:38.8]}
14... f5 {[%clk 0:02:43.1]} 15. fxe5 {[%clk 0:02:34.1]} 15... Nxe5 {[%clk
0:02:25.3]} 16. b3 {[%clk 0:02:25.5]} 16... Qa5 {[%clk 0:02:16.7]} 17. Rc1
{[%clk 0:02:23.2]} 17... fxe4 {[%clk 0:02:12.1]} 18. Nxe4 {[%clk 0:02:14.8]}
18... Rxf1+ {[%clk 0:02:08.5]} 19. Qxf1 {[%clk 0:02:15.7]} 19... Rf8 {[%clk
0:02:08.1]} 20. Qd1 {[%clk 0:02:09.7]} 20... Qd8 {[%clk 0:01:13.5]} 21. Ng5
{[%clk 0:02:03.6]} 21... Bh6 {[%clk 0:01:09.1]} 22. h4 {[%clk 0:01:57.3]} 22...
Ndf3+ {[%clk 0:01:01]} 23. Bxf3 {[%clk 0:01:51.3]} 23... Nxf3+ {[%clk
0:01:00.5]} 24. Kg2 {[%clk 0:01:47.9]} 24... Nxg5 {[%clk 0:01:00.7]} 25. hxg5
{[%clk 0:01:46.9]} 25... Bxg5 {[%clk 0:01:00.7]} 26. Qd2 {[%clk 0:01:46.6]}
26... Bxe3 {[%clk 0:00:58.1]} 27. Qxe3 {[%clk 0:01:47.5]} 27... Qf6 {[%clk
0:00:56.4]} 28. Re1 {[%clk 0:01:42.5]} 28... Kg7 {[%clk 0:00:54.6]} 29. a4
{[%clk 0:01:37.6]} 29... h5 {[%clk 0:00:48.6]} 30. Qe7+ {[%clk 0:01:33.3]} 30...
Rf7 {[%clk 0:00:47]} 31. Qxf6+ {[%clk 0:01:32.2]} 31... Rxf6 {[%clk 0:00:44.1]}
32. Re7+ {[%clk 0:01:31.5]} 32... Rf7 {[%clk 0:00:44.6]} 33. Re6 {[%clk
0:01:31.6]} 33... Rd7 {[%clk 0:00:39]} 34. Kf3 {[%clk 0:01:27.5]} 34... Rf7+
{[%clk 0:00:33]} 35. Ke3 {[%clk 0:01:21.1]} 35... Rd7 {[%clk 0:00:31.3]} 36. a5
{[%clk 0:01:20.2]} 36... Kh6 {[%clk 0:00:29]} 37. Kf4 {[%clk 0:01:14.7]} 37...
Rf7+ {[%clk 0:00:17.7]} 38. Ke4 {[%clk 0:01:14.2]} 38... Rd7 {[%clk 0:00:14.2]}
39. Kf3 {[%clk 0:01:11.7]} 39... Kg5 {[%clk 0:00:11.5]} 40. Ke4 {[%clk
0:01:11.4]} 40... Kh6 {[%clk 0:00:05.1]} 41. Ke3 {[%clk 0:01:05.8]} 41... Kg5
{[%clk 0:00:04.9]} 42. Kf2 {[%clk 0:01:05.9]} 42... Kf5 {[%clk 0:00:04.3]} 43.
Kf3 {[%clk 0:01:03.8]} 43... g5 {[%clk 0:00:03.7]} 44. Rh6 {[%clk 0:01:03.9]}
44... g4+ {[%clk 0:00:03.6]} 45. Ke3 {[%clk 0:01:03.3]} 45... Kg5 {[%clk
0:00:03.9]} 46. Re6 {[%clk 0:01:01.8]} 46... h4 {[%clk 0:00:04.5]} 47. gxh4+
{[%clk 0:01:01.6]} 47... Kxh4 {[%clk 0:00:05.1]} 48. Kf2 {[%clk 0:01:01.7]}
48... Rf7+ {[%clk 0:00:04]} 49. Kg2 {[%clk 0:01:01.7]} 49... Rd7 {[%clk
0:00:01.8]} 50. Re8 {[%clk 0:00:59.7]} 50... Kg5 {[%clk 0:00:01.7]} 51. Kg3
{[%clk 0:00:59.4]} 51... Rg7 {[%clk 0:00:01.6]} 52. Re6 {[%clk 0:00:55.9]} 52...
Kf5 {[%clk 0:00:02]} 53. Rxd6 {[%clk 0:00:54.9]} 53... Re7 {[%clk 0:00:02.4]}
54. Rb6 {[%clk 0:00:52.2]} 54... Re3+ {[%clk 0:00:02.6]} 55. Kg2 {[%clk
0:00:52.3]} 55... Rd3 {[%clk 0:00:02.8]} 56. Rxb7 {[%clk 0:00:51.9]} 56... Kf4
{[%clk 0:00:03.3]} 57. Rf7+ {[%clk 0:00:50.8]} 57... Kg5 {[%clk 0:00:03.6]} 58.
Rc7 {[%clk 0:00:31.5]} 58... Rxb3 {[%clk 0:00:03.3]} 59. Rxc5 {[%clk 0:00:31.4]}
59... Kf4 {[%clk 0:00:04]} 60. d6 {[%clk 0:00:31.2]} 60... Rb2+ {[%clk
0:00:04.4]} 61. Kf1 {[%clk 0:00:31.4]} 61... g3 {[%clk 0:00:02.7]} 62. d7 {[%clk
0:00:28.6]} 62... Rb1+ {[%clk 0:00:03.1]} 63. Ke2 {[%clk 0:00:28.4]} 63... Rb2+
{[%clk 0:00:03.5]} 64. Kd3 {[%clk 0:00:27]} 64... Rb1 {[%clk 0:00:04]} 65. Kc2
{[%clk 0:00:17.6]} 65... Rb8 {[%clk 0:00:03.1]} 66. Rc8 {[%clk 0:00:14]} 66...
Rb7 {[%clk 0:00:01.5]} 67. d8=Q {[%clk 0:00:13.9]} 1-0

[Event "*** SCC Grand Prix: Titled Tuesday Blitz"]
[Site "Chess.com"]
[Date "2020.08.11"]
[Round "8"]
[White "XiaoKangZhong"]
[Black "AJSC02"]
[Result "1-0"]
[WhiteElo "2425"]
[BlackElo "2265"]
[TimeControl "180+1"]
[EndTime "11:35:44 PDT"]
[Termination "XiaoKangZhong won on time"]

1. e4 {[%clk 0:03:00.9]} 1... c5 {[%clk 0:02:58.2]} 2. c3 {[%clk 0:02:59]} 2...
d5 {[%clk 0:02:56.3]} 3. exd5 {[%clk 0:02:58.4]} 3... Qxd5 {[%clk 0:02:56.7]} 4.
d4 {[%clk 0:02:59.3]} 4... Nf6 {[%clk 0:02:56.3]} 5. Nf3 {[%clk 0:02:58.3]} 5...
Bg4 {[%clk 0:02:55]} 6. Be2 {[%clk 0:02:56.8]} 6... e6 {[%clk 0:02:55]} 7. h3
{[%clk 0:02:44.7]} 7... Bh5 {[%clk 0:02:54.7]} 8. Be3 {[%clk 0:02:44.5]} 8...
cxd4 {[%clk 0:02:53.2]} 9. cxd4 {[%clk 0:02:43.7]} 9... Be7 {[%clk 0:02:52.7]}
10. Nc3 {[%clk 0:02:43.3]} 10... Qd6 {[%clk 0:02:52.8]} 11. Nb5 {[%clk
0:02:15.2]} 11... Qd8 {[%clk 0:02:34.4]} 12. O-O {[%clk 0:02:08.5]} 12... O-O
{[%clk 0:02:33.5]} 13. a4 {[%clk 0:02:06.2]} 13... a6 {[%clk 0:02:33.1]} 14. Nc3
{[%clk 0:02:06.3]} 14... Nc6 {[%clk 0:02:30.4]} 15. Qd2 {[%clk 0:01:38.5]} 15...
Nb4 {[%clk 0:02:28.1]} 16. b3 {[%clk 0:01:32.7]} 16... Rc8 {[%clk 0:02:27]} 17.
Rac1 {[%clk 0:01:31.7]} 17... Nbd5 {[%clk 0:02:25.5]} 18. Nxd5 {[%clk
0:01:25.2]} 18... Nxd5 {[%clk 0:02:25.3]} 19. Rfd1 {[%clk 0:01:20.7]} 19... Bb4
{[%clk 0:02:22.5]} 20. Qd3 {[%clk 0:01:20.6]} 20... Bg6 {[%clk 0:02:18.3]} 21.
Rxc8 {[%clk 0:01:16.3]} 21... Qxc8 {[%clk 0:02:17.7]} 22. Qc4 {[%clk 0:01:10.2]}
22... Qb8 {[%clk 0:01:55.2]} 23. Rc1 {[%clk 0:00:58.8]} 23... Ba3 {[%clk
0:01:51.8]} 24. Ra1 {[%clk 0:00:46.4]} 24... Rc8 {[%clk 0:01:48.9]} 25. Rxa3
{[%clk 0:00:45]} 25... Rxc4 {[%clk 0:01:48.5]} 26. bxc4 {[%clk 0:00:45.9]} 26...
Nxe3 {[%clk 0:01:48.6]} 27. fxe3 {[%clk 0:00:44.6]} 27... Qd6 {[%clk 0:01:39]}
28. Rb3 {[%clk 0:00:42.6]} 28... Qc6 {[%clk 0:01:35]} 29. Ne5 {[%clk 0:00:40.9]}
29... Qxa4 {[%clk 0:01:30]} 30. Rxb7 {[%clk 0:00:37.8]} 30... h6 {[%clk
0:01:11.7]} 31. Nxg6 {[%clk 0:00:30.3]} 31... fxg6 {[%clk 0:01:12.6]} 32. c5
{[%clk 0:00:30.7]} 32... Qa1+ {[%clk 0:01:08.2]} 33. Kf2 {[%clk 0:00:29.9]}
33... Qc3 {[%clk 0:01:07.8]} 34. Bxa6 {[%clk 0:00:20.9]} 34... Qd2+ {[%clk
0:01:07.7]} 35. Be2 {[%clk 0:00:21.1]} 35... Qc2 {[%clk 0:00:43.2]} 36. g4
{[%clk 0:00:20]} 36... e5 {[%clk 0:00:29.9]} 37. Re7 {[%clk 0:00:17.7]} 37...
exd4 {[%clk 0:00:24.9]} 38. exd4 {[%clk 0:00:18.6]} 38... Qc3 {[%clk 0:00:23.5]}
39. Re4 {[%clk 0:00:12.7]} 39... Qc2 {[%clk 0:00:21.6]} 40. Ke3 {[%clk
0:00:11.9]} 40... Qc1+ {[%clk 0:00:19.9]} 41. Kf2 {[%clk 0:00:11.5]} 41... Qc2
{[%clk 0:00:19.6]} 42. Kf3 {[%clk 0:00:10.9]} 42... Qc3+ {[%clk 0:00:19]} 43.
Kg2 {[%clk 0:00:10.2]} 43... Qc2 {[%clk 0:00:17.9]} 44. Re3 {[%clk 0:00:08.7]}
44... Qc1 {[%clk 0:00:15.7]} 45. Kf2 {[%clk 0:00:08]} 45... Qc2 {[%clk
0:00:13.8]} 46. Kf3 {[%clk 0:00:05.3]} 46... g5 {[%clk 0:00:11.9]} 47. Bd3
{[%clk 0:00:04.5]} 47... Qd1+ {[%clk 0:00:10.6]} 48. Ke4 {[%clk 0:00:05]} 48...
Qh1+ {[%clk 0:00:09.6]} 49. Ke5 {[%clk 0:00:05.5]} 49... Qc6 {[%clk 0:00:08.6]}
50. Bc4+ {[%clk 0:00:04.2]} 50... Kh8 {[%clk 0:00:07.2]} 51. d5 {[%clk
0:00:03.2]} 51... Qf6+ {[%clk 0:00:07]} 52. Ke4 {[%clk 0:00:03.8]} 52... Qf4+
{[%clk 0:00:07]} 53. Kd3 {[%clk 0:00:04.4]} 53... Qf1+ {[%clk 0:00:06.6]} 54.
Kd4 {[%clk 0:00:04.5]} 54... Qf4+ {[%clk 0:00:06.5]} 55. Re4 {[%clk 0:00:05.2]}
55... Qf6+ {[%clk 0:00:06]} 56. Kd3 {[%clk 0:00:04.8]} 56... Qf1+ {[%clk
0:00:06.1]} 57. Kc3 {[%clk 0:00:04.7]} 57... Qc1+ {[%clk 0:00:05.7]} 58. Kb4
{[%clk 0:00:04.7]} 58... Qb2+ {[%clk 0:00:04.1]} 59. Ka5 {[%clk 0:00:05.2]}
59... Qa1+ {[%clk 0:00:03.4]} 60. Kb6 {[%clk 0:00:05.1]} 60... Qb1+ {[%clk
0:00:03.5]} 61. Kc6 {[%clk 0:00:05.1]} 61... Qxe4 {[%clk 0:00:03.5]} 62. Bb5
{[%clk 0:00:05.8]} 62... Qg6+ {[%clk 0:00:02.2]} 63. d6 {[%clk 0:00:05.9]} 63...
Qe6 {[%clk 0:00:01.9]} 64. Kb6 {[%clk 0:00:06]} 1-0